Cogmind - Beta 16 @@@ ROGUE MODE // 2025.11.26 @ 14:08:35 Player: AngelSpirit Result: Destroyed by MZ-88C(j) with Overtuned Pulse Rifle Performance ------------- Evolutions (0) 0 Regions Visited (3) 600 Robots Destroyed (15) 75 Value Destroyed (300) 300 Prototype IDs (8) 160 Alien Tech Used (0) 0 Bonus (800) 800 TOTAL SCORE: 1935 Bonus ------- Registered with UFD 300 Met Optimus in HQ 500 Cogmind --------- Core Integrity 0/250 Matter 300/300 Energy 99/100 System Corruption 0% Temperature Cool (12) Movement Core (50) Location -7/Scraptown Parts ------- > --- POWER (1) -------- (None) > --- PROPULSION (2) --- (None) > --- UTILITY (2) ------ Makeshift System Shield > --- WEAPON (2) ------- (None) > --- INVENTORY (5) ---- Improved Signal Interpreter Surveybot 17 Chip Makeshift Hacking Suite Master Drone Bay (1/1) Scythe Peak State ------------ > --- POWER ------------ Makeshift Power Source > --- PROPULSION ------- Xenon Bombardment Thruster Makeshift Flight Unit > --- UTILITY ---------- Small Storage Unit Makeshift System Shield > --- WEAPON ----------- Gatling Laser CPS Tube > --- INVENTORY -------- Large Matter Pod Structural Scanner Improved Signal Interpreter Transmission Jammer Makeshift Hacking Suite A0-MCA's Component Scanner Heavy Rocket Launcher Scythe [Rating: 26] Favorites ----------- Power Light Ion Engine Engine Light Ion Engine Propulsion Wheel Wheel Wheel Flight Unit Xenon Bombardment Thruster Utility Medium Storage Unit Device Terrain Scanner Storage Medium Storage Unit Hackware Makeshift System Shield Weapon Scythe Energy Gun Gatling Laser Ballistic Gun Assault Rifle Ballistic Cannon Slug Cannon Launcher Grenade Launcher Special Weapon CPS Tube Slashing Weapon Scythe Build | -11 -10 -10 -7 ------- Run | Yrd Mat Sub Scr Slots Evolved . | . . . . Power . | . . . . Propulsion . | . . . . Utility . | . . . . Weapon . | . . . . Parts Attached 26 | 6 4 3 13 Power 3 | 1 1 . 1 Engine 3 | 1 1 . 1 Core . | . . . . Reactor . | . . . . Propulsion 8 | 2 2 . 4 Treads . | . . . . Leg . | . . . . Wheel 4 | 2 . . 2 Hover . | . . . . Flight 4 | . 2 . 2 Utility 6 | 1 1 1 3 Device 2 | . . 1 1 Storage 3 | 1 1 . 1 Processor . | . . . . Hackware 1 | . . . 1 Protection . | . . . . Artifact . | . . . . Weapon 9 | 2 . 2 5 Energy Gun 1 | . . . 1 Energy Cannon . | . . . . Ballistic Gun 3 | 2 . 1 . Ballistic Cannon 1 | . . . 1 Launcher 1 | . . 1 . Special Weapon 1 | . . . 1 Impact Weapon . | . . . . Slashing Weapon 2 | . . . 2 Piercing Weapon . | . . . . Special Melee Weapon . | . . . . Unidentified Prototypes . | . . . . Parts Lost 3 | . . . 3 Power . | . . . . Propulsion 2 | . . . 2 Utility . | . . . . Weapon 1 | . . . 1 Highest Loss Streak 3 | . . . 3 To Critical Strikes . | . . . . Average Backups 6 | . 3 6 7 Power . | . . . . Propulsion . | . . 1 . Utility 3 | . 2 2 4 Weapon 1 | . . 1 2 Tool/Special . | . . . . Unused Backups 16 | . . . 16 Power 1 | . . . 1 Propulsion 3 | . . . 3 Utility 8 | . . . 8 Weapon 4 | . . . 4 Tool/Special . | . . . . Average Slot Usage (%) 84 | . 84 98 82 Engine 13 | . 14 14 13 Wheel 22 | . 27 28 20 Flight 5 | . . . 7 Device 3 | . . 14 2 Storage 14 | . 14 14 14 Hackware 2 | . . . 3 Ballistic Gun 7 | . 28 24 . Ballistic Cannon 1 | . . . 2 Special Weapon 2 | . . . 3 Slashing Weapon 9 | . . . 12 Peak Build Rating 26 | 6 7 9 26 Average Rating 12 | 4 5 8 14 On Entrance 4 | . 6 6 6 Avg Prop Armor Cover (%) . | . . . . Naked Turns . | . . . . Heaviest Build 23 | 12 17 20 23 Greatest Support 28 | 20 20 20 28 Greatest Overweight (x) 1 | . 1 . 1 Average Overweight (x) . | . . . . Largest Inventory Capacity 10 | 8 10 10 10 Average Capacity 9 | 6 9 10 9 Most Carried 10 | . 4 9 10 Average Carried 7 | . 3 6 8 Final Capacity 10 | 8 10 10 5 Final Carried 9 | . 4 9 5 Class Distribution -------------------- 68% | Mutant 31% | Derelict-Mutant Dominant Class ---------------- Mutant | -10/Materials Mutant | -10/Subcaves Mutant | -7/Scraptown Resources | -11 -10 -10 -7 ----------- Run | Yrd Mat Sub Scr Matter Collected 826 | 189 226 69 342 Remotely . | . . . . Salvage Created 328 | . 226 102 . Parts 25 | . 12 13 . Haulers Intercepted . | . . . . Recyclers Shooed . | . . . . Parts Field Recycled . | . . . . Retrieved Matter . | . . . . Parts Self-Destructed 3 | . . 3 . Prevented . | . . . . Parts Restored . | . . . . Kills | -11 -10 -10 -7 ------- Run | Yrd Mat Sub Scr Combat Hostiles Destroyed 12 | . 6 6 . Guns 8 | . 6 2 . AOE 4 | . . 4 . Classes Destroyed 5 | . 4 1 . Operator 1 | . 1 . . Watcher 2 | . 2 . . Swarmer 7 | . 3 4 . Grunt 3 | . 3 . . Subdweller 2 | . . 2 . Best Kill Streak 5 | . 5 4 . Combat Bots Only 5 | . 5 4 . Max Kills in Single Turn 4 | . 1 4 . Gunslinging . | . . . . Exploded 4 | . . 4 . Melee . | . . . . Uniques/NPCs Destroyed . | . . . . Combat | -11 -10 -10 -7 -------- Run | Yrd Mat Sub Scr Hostile Shots Fired 70 | . 23 13 34 Missed 26 | . 5 7 14 Hits 44 | . 18 6 20 Projectile 44 | . 18 6 20 Critical Strikes 3 | . . . 3 Damage Taken 562 | . 191 53 318 Core 258 | . 59 . 199 Absorbed by Shields . | . . . . Core Remaining (%) 100 | 100 . . . Volleys Fired 31 | . 26 5 . Largest 2 | . 2 2 . Hottest 40 | . 40 40 . Shots Fired 60 | . 52 8 . Gun 59 | . 52 7 . Cannon . | . . . . Launcher 1 | . . 1 . Special . | . . . . Kinetic 59 | . 52 7 . Thermal . | . . . . Explosive 1 | . . 1 . Electromagnetic . | . . . . Robot Hit Streak 13 | . 10 13 . Robot Miss Streak 2 | . 2 . . Penetration Max . | . . . . Secondary Targets 1 | . 1 . . Max Gunslinging Chain 1 | . 1 . . Shots Hit Robots 39 | . 32 7 . Core Hits 19 | . 11 8 . Critical Kills . | . . . . Critical Parts Destroyed . | . . . . Critical Strikes . | . . . . Melee Attacks 1 | . . . 1 Impact . | . . . . Slashing 1 | . . . 1 Piercing . | . . . . Sneak Attacks . | . . . . Combat Hostiles . | . . . . Follow-up Attacks . | . . . . Damage Inflicted 649 | . 407 242 . Guns 483 | . 407 76 . Cannons . | . . . . Explosions 166 | . . 166 . Melee . | . . . . Ramming . | . . . . Kinetic 483 | . 407 76 . Thermal . | . . . . Explosive 166 | . . 166 . Electromagnetic . | . . . . Impact . | . . . . Slashing . | . . . . Piercing . | . . . . Highest Corruption 2 | . 2 2 . Average Corruption 2 | . 2 2 . Corruption Purged . | . . . . Corruption Blocked . | . . . . Effects 12 | . 6 6 . Message Errors 4 | . 3 1 . Heat Flow Errors 1 | . 1 . . Energy Discharges 2 | . 1 1 . Data Loss (minor) 2 | . . 2 . Data Loss (major) 1 | . . 1 . Alerts 2 | . 1 1 . Overload Shots . | . . . . Overflow Damage . | . . . . Projectiles . | . . . . Explosions . | . . . . Melee . | . . . . Knockbacks . | . . . . Impact . | . . . . Kinetic . | . . . . Secondary . | . . . . Self-Inflicted Damage . | . . . . Shots . | . . . . Rammed . | . . . . Targets Rammed . | . . . . Kicked . | . . . . Crushed . | . . . . Highest Temperature 148 | . 148 . 16 Average Temperature 54 | . 89 . 10 Received Heat Transfer 272 | . 54 12 206 Siege Activations . | . . . . Martial Activations . | . . . . Shielding Activations . | . . . . Robots Disrupted . | . . . . Combat Hostiles . | . . . . Robots Corrupted . | . . . . Combat Hostiles . | . . . . Parts Fried . | . . . . Impact Corruptions . | . . . . Robots Melted . | . . . . Combat Hostiles . | . . . . Parts Melted . | . . . . Heat Transferred . | . . . . Parts Sabotaged . | . . . . Parts Stolen . | . . . . Parts Stripped . | . . . . Power Chain Reactions . | . . . . Alert | -11 -10 -10 -7 ------- Run | Yrd Mat Sub Scr Maximum Alert Level . | . . . . Low Security (%) 100 | 100 100 . . Level 1 . | . . . . Level 2 . | . . . . Level 3 . | . . . . Level 4 . | . . . . Level 5 . | . . . . High Security . | . . . . Max Security . | . . . . Peak Influence 147 | . 147 . . Initial . | . . . . Average 60 | . 66 . . Influence Increases 362 | . 237 125 . Destroy 0b10 Robot/C 200 | . 120 80 . Destroy 0b10 Robot/NC 15 | . 15 . . Destroy Leader 24 | . 24 . . Successful Hack 16 | . 16 . . Destroy Structure 2 | . 2 . . Partial Spotted 15 | . 15 . . Lose Combat Pursuer 90 | . 45 45 . Influence Decreases 362 | . 148 99 115 Entered New Map 159 | . . 44 115 Time Decay 203 | . 148 55 . Squads Dispatched 2 | . 2 . . Investigation . | . . . . Extermination . | . . . . Reinforcement 2 | . 2 . . Assault . | . . . . Garrison . | . . . . Intercept . | . . . . Searches Triggered . | . . . . Construction Impeded . | . . . . Haulers Reinforced . | . . . . Active Scanning Responses . | . . . . Cargo Convoy Interrupts . | . . . . Stealth | -11 -10 -10 -7 --------- Run | Yrd Mat Sub Scr Distress Signals 3 | . 3 . . Communications Jammed . | . . . . Distress Signals . | . . . . Times Spotted 30 | . 11 6 13 Peak Tracking Total 10 | . 6 6 10 Tactical Retreats 4 | . 3 1 . Traps | -11 -10 -10 -7 ------- Run | Yrd Mat Sub Scr Traps Triggered 2 | . 2 . . Indirectly . | . . . . Trap Hack Attempts . | . . . . Triggered . | . . . . Disarmed . | . . . . Reprogrammed . | . . . . Reused 1 | . . . 1 Traps Extracted . | . . . . Installed 1 | . . . 1 Triggered . | . . . . Most Traps Carried 2 | . . . 2 Machines | -11 -10 -10 -7 ---------- Run | Yrd Mat Sub Scr Machines Disabled 1 | . . . 1 Max in Single Turn 1 | . . . 1 Machines Repaired . | . . . . Machines Dismantled . | . . . . Machines Sabotaged . | . . . . Overloaded Fab Kills . | . . . . Hacking | -11 -10 -10 -7 --------- Run | Yrd Mat Sub Scr Machines Accessed 8 | . 2 . 6 Terminals 2 | . 2 . . Fabricators . | . . . . Repair Stations . | . . . . Recycling Units . | . . . . Scanalyzers . | . . . . Garrison Access . | . . . . Total Hacks 51 | . 8 . 43 Successful 47 | . 4 . 43 Failed 4 | . 4 . . Catastrophic . | . . . . Database Lockouts . | . . . . Manual 7 | . 6 . 1 Terminals 8 | . 8 . . Fabricators . | . . . . Repair Stations . | . . . . Recycling Units . | . . . . Scanalyzers . | . . . . Garrison Access . | . . . . Terminal Hacks 46 | . 3 . 43 Record 42 | . . . 42 Prototype ID Bank 1 | . 1 . . Branch Access Points 1 | . 1 . . Registered Components 1 | . 1 . . Proto ID Catalog 1 | . . . 1 Fabricator Hacks . | . . . . Repair Station Hacks . | . . . . Recycling Unit Hacks . | . . . . Scanalyzer . | . . . . Garrison Access Hacks . | . . . . Unauthorized Hacks 1 | . 1 . . Terminals 1 | . 1 . . Botnet 1 | . 1 . . Fabricators . | . . . . Repair Stations . | . . . . Recycling Units . | . . . . Scanalyzers . | . . . . Garrison Access . | . . . . Data Cores Recovered . | . . . . Used . | . . . . Hacking Detections 2 | . 2 . . Full Trace Events . | . . . . Feedback Events . | . . . . Feedback Blocked . | . . . . Robot Schematics Acquired . | . . . . Robots Built . | . . . . Authchips . | . . . . Time . | . . . . Total Robot Build Rating . | . . . . Part Schematics Acquired . | . . . . Parts Built . | . . . . Authchips . | . . . . Time . | . . . . Total Part Build Rating . | . . . . Part Studies Acquired . | . . . . Parts Repaired . | . . . . Time . | . . . . Parts Recycled . | . . . . Recycled Matter . | . . . . Retrieved Matter . | . . . . Retrieved Components . | . . . . Parts Scanalyzed . | . . . . Part Schematics Acquired . | . . . . Parts Damaged . | . . . . Bothacking | -11 -10 -10 -7 ------------ Run | Yrd Mat Sub Scr Used RIF Installer . | . . . . Robots Hacked . | . . . . Non-combat . | . . . . Combat . | . . . . Robot Hacks Applied . | . . . . Relay Couplers Released . | . . . . Fabnet Peak Effective % . | . . . . Robots Rewired . | . . . . Allies Hacked . | . . . . Hacks Repelled . | . . . . Allies | -11 -10 -10 -7 -------- Run | Yrd Mat Sub Scr Total Allies . | . . . . Largest Group . | . . . . Highest-Rated Group . | . . . . Highest-Rated Ally . | . . . . Total Orders . | . . . . Ally Attacks . | . . . . Total Damage . | . . . . Kills . | . . . . Allies Corrupted . | . . . . Allies Melted . | . . . . Intel | -11 -10 -10 -7 ------- Run | Yrd Mat Sub Scr Active Infowar (turns) 500 | . . 199 301 Terrain 499 | . . 199 300 Structural 1 | . . . 1 Robot Analysis Total . | . . . . Derelict Logs Recovered 3 | . . . 3 Drone Launches . | . . . . Drone Recoveries . | . . . . Exploration | -11 -10 -10 -7 ------------- Run | Yrd Mat Sub Scr Turns Passed 2351 | 37 413 199 1702 Spaces Moved 2414 | 36 324 163 1891 Core 9 | 1 . . 8 Treads . | . . . . Legs . | . . . . Wheels 1918 | 35 321 163 1399 Hover . | . . . . Flight 487 | . 3 . 484 Fastest Speed 37 | 50 37 80 40 Average Speed 76 | 79 79 80 75 Slowest Speed 145 | 80 120 80 145 Overloaded Moves . | . . . . Propulsion Burnouts . | . . . . Robots Hopped . | . . . . Potential Cave-ins . | . . . . Cave-ins Triggered . | . . . . Exploration Rate (%) 38 | 4 48 12 90 Regions Visited 3 Branch Regions 2 Pre-discovered Areas 5 | . . . 5 Known Exits Taken . | . . . . Unknown Exits Taken 3 | 1 1 1 . Scrap Searched 6 | . . . 6 Spaces Dug . | . . . . Terrain Destroyed 8 | . . 8 . Melee . | . . . . Projectile . | . . . . AOE 8 | . . 8 . Terrain Rammed . | . . . . Walls Destroyed . | . . . . Machines Disabled . | . . . . Actions | -11 -10 -10 -7 --------- Run | Yrd Mat Sub Scr Total 2867 | 41 426 223 2177 Wait 326 | . 59 45 222 Move 2411 | 35 323 162 1891 Hop . | . . . . Pick Up 23 | . 4 5 14 Fast Attach 25 | 6 7 . 12 Attach 2 | . . 1 1 Detach 5 | . . 2 3 Swap 3 | . . 2 1 Drop 39 | . 7 1 31 Fire 31 | . 26 5 . Melee 1 | . . . 1 Ram . | . . . . Kick . | . . . . Crush . | . . . . Escape Stasis . | . . . . Rewire . | . . . . Trap 1 | . . . 1 Miscellaneous . | . . . . Route ------- -11/Scrapyard -10/Materials (discovered 2 exits: *Min / [*Sub]) -10/Subcaves (discovered 2 exits: [*Mat] / *Scr) -7/Scraptown (discovered 1 exit: [*Fac]) History --------- Turn | Location | Event 20 | -11/Scrapyard | Discovered new exit (range 14) 38 | -11/Scrapyard | Entered Materials 278 | -10/Materials | Identified exit to Mines 318 | -10/Materials | Build established: Mutant 447 | -10/Materials | Discovered new exit (range 7) 451 | -10/Materials | Entered Subcaves 452 | -10/Subcaves | Approached by a straggling Scientist 459 | -10/Subcaves | Discovered new exit (range 12) 536 | -10/Subcaves | Shifting Twisted Machinery released Sub. Beam Cannon 548 | -10/Subcaves | Shifting Twisted Machinery released Sub. Power Source 591 | -10/Subcaves | A swath of the cavern ceiling suddenly collapsed 618 | -10/Subcaves | Scientist uncovered a shortcut to Scraptown 650 | -10/Subcaves | Entered Scraptown 650 | -7/Scraptown | System corruption cleaned by C-Scrubber 717 | -7/Scraptown | Heard Great Nut preacher, LISTEN AND RECITE! 806 | -7/Scraptown | Visited Awakened 815 | -7/Scraptown | Visited TADAMA 845 | -7/Scraptown | Scanned Subdweller tech in exchange for log data 848 | -7/Scraptown | Learned Research trap positions 848 | -7/Scraptown | Learned Research non-interactive machine intel 904 | -7/Scraptown | Discovered new exit (range 13) 947 | -7/Scraptown | Visited Red Mages 987 | -7/Scraptown | Visited Cyclists 1012 | -7/Scraptown | Visited Symbiants 1044 | -7/Scraptown | Visited UFD Registry 1044 | -7/Scraptown | Registered with UFD as "Chainslasher" 1056 | -7/Scraptown | Visited Spacefarers 1067 | -7/Scraptown | Visited SPCMW 1191 | -7/Scraptown | Entered Cyclist Reading Room 1392 | -7/Scraptown | Visited Science Guys 1427 | -7/Scraptown | Visited Scrap Suit Storage 1439 | -7/Scraptown | Visited Science Testing Area 1558 | -7/Scraptown | Visited A0-MCA Data Center 1563 | -7/Scraptown | Given a B- rating by A0-MCA 1567 | -7/Scraptown | Found A0-MCA's Component Scanner 1586 | -7/Scraptown | Visited DA-N13 Charitable Foundation 1597 | -7/Scraptown | Found DCF Scrap (31 items) 1921 | -7/Scraptown | Visited Cartography Club 1926 | -7/Scraptown | Build established: Derelict-Mutant 1933 | -7/Scraptown | Found Surveybot 17 Chip 1959 | -7/Scraptown | Learned location of Warlord (-4) 1959 | -7/Scraptown | Learned location of Cetus (-6) 1959 | -7/Scraptown | Learned location of Testing (-3) 1959 | -7/Scraptown | Learned 8 Factory zone layouts 1959 | -7/Scraptown | Learned 12 Research zone layouts 1959 | -7/Scraptown | Learned 4 Mines zone layouts 1959 | -7/Scraptown | Learned 16 Upper Caves zone layouts 1959 | -7/Scraptown | Learned 24 Proximity Caves zone layouts 1959 | -7/Scraptown | Learned Storage emergency access door positions 1959 | -7/Scraptown | Learned location of 2 exits from Research 1959 | -7/Scraptown | Learned location of 1 exit from Upper Caves 1973 | -7/Scraptown | Visited Scrapoid Pod Storage 1981 | -7/Scraptown | Visited Observation Area 1990 | -7/Scraptown | Visited Modified Component R&D 2043 | -7/Scraptown | Met Optimus 2043 | -7/Scraptown | Accepted into 0bPrime 2308 | -7/Scraptown | Civil war broke out across Scraptown 2314 | -7/Scraptown | Found Master Drone Bay 2340 | -7/Scraptown | Core integrity fell below 50% 2350 | -7/Scraptown | Core integrity fell below 20% 2352 | -7/Scraptown | Destroyed by MZ-88C(j) with Overtuned Pulse Rifle Last Messages --------------- 02336_ Installed Vortex Trap. 02336_ Mak. Flight Unit destroyed. 02337_ Dropped Mak. Power Source. 02338_ Bolt penetrates Machine. 02338_ Dropped Gatling Laser. 02339_ Critical hit (Burn: +50). 02340_ Penetrated by Bolt. 02343_ Bolt penetrates 5M-U0W(c). 02345_ KR-CL5(j) heat spikes uncontrollably. 02346_ Bolt penetrates Wall. 02346_ Xenon Bombardment Thruster destroyed. 02347_ 85-4CK(j) cannibalizes Ovr. Titanium Leg to repair Ovr. Titanium Leg. 02347_ Dropped Structural Scanner. 02347_ Dropped Hvy. Rocket Launcher. 02348_ Dropped Lrg. Matter Pod. 02348_ Dropped Sml. Storage Unit. 02349_ Bolt penetrates Wall. 02350_ Critical hit (Burn: +50). 02351_ Penetrated by Bolt. Map ----- +----------------------------------------------------+ | | | | | | | | | | | ?????????????????????????????????????????????????? | | ?????????????????????????????????????????????????? | | ?????????????????????????????????????????????????? | | ?????????????????????????????????????????????????? | | ?????????????????????????????????????????????????? | | ?????????????????????????????????????????????????? | | ?????????????????????????????????????????????????? | | ?????????????????????????????????????????????????? | | ?????????????????????????????????????????????????? | | ?????????????????????????????????????????????????? | | ?????????????????????????????????????????????????? | | ?????????????????????????????????????????????????? | | ?????????????????????????????????????????????????? | | ???????????????????????#####??##?????????????????? | | ???????????????????????#; ### ##????????????????? | | ???????????????????????# !%=#;[!?????????????????? | | ??????????????????????? !=*[[ [??????????????????? | | ????????????????????????=%!!% ???????????????????? | | ????????????????????????[!j #????????????????????? | | ????????????????????????#%=#???##########????????? | | ????????????????????????#@j#???# # # #????????? | | ????????????????????????# ###?# # # ## #????????? | | ????????????????????????# # ##### # #????????? | | ????????????????????????# #!#! # # #????????? | | ??#?????????#???????????# # # ## #### ##????????? | | ??#"???????"#???????????# # # # # #?????????? | | ??#"???????"#?########### !# ####X# #?????????? | | ??#" ????? "#?#""""""" ##!!# ## #### # ##????????? | | ??#" """"" "#?#" ! "## ]# # # #????????? | | ??#" "#?#" "## ###### ## ####????????? | | ??# ""#??" "## # #????????? | | ??# #???? ??# # !% #????????? | | ??##### #####?????# #???# ## ###########????????? | | ####### ########### #####x ## ##?????####????????? | | """"""" """"""""""" """"" h"" "#???"" ?????????? | | "#?? "??????????? | | "#?? "??????????? | | "#?" ""?????????? | | "##" " ????????? | | " ""???????????? | | """"""""""""""""""""""""" "##" ""???????????? | | """"""""""""""""""""""""" "#?" " ??????????? | | ##### ################"" "#?? ???????????? | | ##????????#"" "#########?????????? | | X"#????????#"" "##=[]* =#?????????? | +----------------------------------------------------+ Best States ------------- Heat Dissipation 25 Energy Generation 15 Energy Capacity 170 Matter Stores 300 Matter Capacity 300 Sight Range 16 Terrain Scan Range 14 Terrain Scan Density 10 Evasion (%) 61 Defensive Hacking 11 Item Schematics ----------------- None Robot Schematics ------------------ None Fabricated ------------ Nothing Repaired ---------- Nothing Studied --------- None Alien Tech Used ----------------- None Achievements -------------- None Challenges ------------ None Game ------ Seed DeliveryMatterMount Manual? 0 Play Time 00:28:36 Cumulative 122.5 hours Start 2025.11.26 @ 13:37:12 End 2025.11.26 @ 14:08:35 Sessions 1 Manual Loads 0 Difficulty Rogue Special Mode None Game No. 64 Rogue 64 Adventurer 0 Explorer 0 Win Type - Total 1 Types 1/0/0/0/0/0/0/0/0/0 Lore% 61 Gallery% 58 Achievement% 44 Wizard Run 0 Options --------- Layout 1 ASCII 0 Keyboard 0 Movement Arrows Keybinds 0 Fullscreen 2 Font 32/SmallcapsGlow Map View 50x35 Zoom Use 0% Tactical HUD 1 Map Filters NONE Filters NONE Steam 1 RUN: e3565cb9-c637-4c3a-ac8c-b38368d01272